[Event "Charlotte Fall-IM 2019"]
[Site "Charlotte"]
[Date "2019.11.30"]
[Round "6.1"]
[White "Francisco, Richard"]
[Black "Arribas Lopez, Angel"]
[Result "1/2-1/2"]
[ECO "B07"]
[WhiteElo "2281"]
[BlackElo "2436"]
[Annotator "RC"]
[PlyCount "48"]
[EventDate "2019.11.28"]
[EventType "tourn"]
[EventCountry "USA"]
[SourceTitle "playchess.com"]
[Source "ChessBase"]
[SourceQuality "1"]
[TimeControl "5400+30"]

1. e4 {[%emt 1:30:30]} g6 {[%emt 1:30:30]} 2. d4 {[%emt 0:00:30]} Bg7 {[%emt 0:00:30]} 3. Be3 {[%emt 0:00:30]} d6 {[%emt 0:00:30]} 4. Nc3 {[%emt 0:00:30]} Nf6 {[%emt 0:00:30]} 5. f3 {[%emt 0:00:30]} c6 {[%emt 0:00:30]} 6. Qd2 {[%emt 0:00:30]} b5 {[%emt 0:00:30]} 7. a4 {[%emt 0:00:30]} b4 {[%emt 0:00:30]} 8. Nd1 {[%emt 0:00:30]} a5 {[%emt 0:00:30]} 9. Bd3 {[%emt 0:00:30]} Nbd7 {[%emt 0:00:30]} 10. Ne2 {[%emt 0:00:30]} e5 {[%emt 0:00:30]} 11. c3 {[%emt 0:00:30]} c5 {[%emt 0:00:30]} 12. d5 {[%emt 0:00:30]} h5 {[%emt 0:00:30]} 13. Bb5 {[%emt 0:00:30]} O-O {[%emt 0:00:30]} 14. Bg5 {[%emt 0:00:30]} Qc7 {[%emt 0:00:30]} 15. Rc1 {[%emt 0:00:30]} Nh7 {[%emt 0:00:30]} 16. Be7 {[%emt 0:00:30]} Re8 {[%emt 0:00:30]} 17. Bh4 {[%emt 0:00:30]} Ba6 {[%emt 0:00:30]} 18. Bxa6 {[%emt 0:00:30]} Rxa6 {[%emt 0:00:30]} 19. c4 {[%emt 0:00:30]} Bf6 {[%emt 0:00:30]} 20. Bxf6 {[%emt 0:00:30]} Ndxf6 {[%emt 0:00:30]} 21. b3 {[%emt 0:00:30]} Kg7 {[%emt 0:00:30]} 22. Ne3 {[%emt 0:00:30]} h4 {[%emt 0:00:30]} 23. Ng1 {[%emt 0:00:30]} Qd8 {[%emt 0:00:30]} 24. Nh3 {[%emt 0:00:30]} Nh5 {[%emt 0:00:30]} 1/2-1/2

[Event "Charlotte Fall-IM 2019"]
[Site "Charlotte"]
[Date "2019.11.30"]
[Round "6.3"]
[White "Gauri, Shankar"]
[Black "Drozdowski, Kacper"]
[Result "1/2-1/2"]
[ECO "A07"]
[WhiteElo "2340"]
[BlackElo "2467"]
[Annotator "RC"]
[PlyCount "45"]
[EventDate "2019.11.28"]
[EventType "tourn"]
[EventCountry "USA"]
[SourceTitle "playchess.com"]
[Source "ChessBase"]
[SourceQuality "1"]
[TimeControl "5400+30"]

1. Nf3 {[%emt 1:30:30]} d5 {[%emt 1:30:30]} 2. g3 {[%emt 0:00:30]} Bg4 {[%emt 0:00:30]} 3. Bg2 {[%emt 0:00:30]} Nd7 {[%emt 0:00:30]} 4. h3 {[%emt 0:00:30]} Bxf3 {[%emt 0:00:30]} 5. Bxf3 {[%emt 0:00:30]} Ngf6 {[%emt 0:00:30]} 6. d3 {[%emt 0:00:30]} c6 {[%emt 0:00:30]} 7. O-O {[%emt 0:00:30]} e5 {[%emt 0:00:30]} 8. c4 {[%emt 0:00:30]} dxc4 {[%emt 0:00:30]} 9. dxc4 {[%emt 0:00:30]} Qc7 {[%emt 0:00:30]} 10. Nc3 {[%emt 0:00:30]} Bc5 {[%emt 0:00:30]} 11. Bg2 {[%emt 0:00:30]} O-O {[%emt 0:00:30]} 12. Qc2 {[%emt 0:00:30]} Rad8 {[%emt 0:00:30]} 13. Na4 {[%emt 0:00:30]} Be7 {[%emt 0:00:30]} 14. Be3 {[%emt 0:00:30]} Nb6 {[%emt 0:00:30]} 15. Rfd1 {[%emt 0:00:30]} Nfd7 {[%emt 0:00:30]} 16. Rd2 {[%emt 0:00:30]} Nxa4 {[%emt 0:00:30]} 17. Qxa4 {[%emt 0:00:30]} Nc5 {[%emt 0:00:30]} 18. Qc2 {[%emt 0:00:30]} Rxd2 {[%emt 0:00:30]} 19. Bxd2 {[%emt 0:00:30]} Rd8 {[%emt 0:00:30]} 20. Bc3 {[%emt 0:00:30]} g6 {[%emt 0:00:30]} 21. Rd1 {[%emt 0:00:30]} Rxd1+ {[%emt 0:00:30]} 22. Qxd1 {[%emt 0:00:30]} Qd6 {[%emt 0:00:30]} 23. Qxd6 {[%emt 0:00:30]} 1/2-1/2

[Event "Charlotte Fall-IM 2019"]
[Site "Charlotte"]
[Date "2019.12.01"]
[Round "8.1"]
[White "Francisco, Richard"]
[Black "Drozdowski, Kacper"]
[Result "0-1"]
[ECO "D30"]
[WhiteElo "2281"]
[BlackElo "2467"]
[Annotator "ChessBase"]
[PlyCount "67"]
[EventDate "2019.11.28"]
[EventType "tourn"]
[EventCountry "USA"]
[SourceTitle "playchess.com"]
[Source "ChessBase"]
[SourceQuality "1"]
[TimeControl "5400+30"]

1. Nf3 {[%emt 1:30:30]} e6 {[%emt 1:30:30]} 2. d4 {[%emt 0:00:30]} d5 {[%emt 0:00:30]} 3. c4 {[%emt 0:00:30]} c6 {[%emt 0:00:30]} 4. Qc2 {[%emt 0:00:30]} dxc4 {[%emt 0:00:30]} 5. Qxc4 {[%emt 0:00:30]} b5 {[%emt 0:00:30]} 6. Qc2 {[%emt 0:00:30]} Bb7 {[%emt 0:00:30]} 7. g3 {[%emt 0:00:30]} Nd7 {[%emt 0:00:30]} 8. a3 {[%emt 0:00:30]} c5 {[%emt 0:00:30]} 9. dxc5 {[%emt 0:00:30]} Bxc5 {[%emt 0:00:30]} 10. Bg2 {[%emt 0:00:30]} Rc8 11. Nc3 {[%emt 0:00:30]} Ngf6 {[%emt 0:01:00]} 12. O-O {[%emt 0:00:30]} O-O {[%emt 0:00:30]} 13. b4 {[%emt 0:00:30]} Bxf3 {[%emt 0:00:30]} 14. Bxf3 {[%emt 0:00:30]} Bd4 {[%emt 0:00:30]} 15. Bb2 {[%emt 0:00:30]} Ne5 {[%emt 0:00:30]} 16. Rac1 {[%emt 0:00:30]} Qb6 {[%emt 0:00:30]} 17. Bg2 {[%emt 0:00:30]} Bxf2+ {[%emt 0:00:30]} 18. Rxf2 {[%emt 0:00:30]} Nfg4 {[%emt 0:00:30]} 19. e3 {[%emt 0:00:30]} Qxe3 {[%emt 0:00:30]} 20. Bf1 {[%emt 0:00:30]} Rfd8 {[%emt 0:00:30]} 21. Kg2 {[%emt 0:00:30]} Nxf2 {[%emt 0:00:30]} 22. Qxf2 {[%emt 0:00:30]} Rd2 {[%emt 0:00:30]} 23. Ne2 {[%emt 0:00:30]} Qe4+ {[%emt 0:00:30]} 24. Kg1 {[%emt 0:00:30]} Rxc1 {[%emt 0:00:30]} 25. Bxc1 {[%emt 0:00:30]} Rd1 {[%emt 0:00:30]} 26. Qxa7 {[%emt 0:00:30]} h5 {[%emt 0:00:30]} 27. Qe3 {[%emt 0:00:30]} Qc6 {[%emt 0:00:30]} 28. Qc5 {[%emt 0:00:30]} Qb7 {[%emt 0:00:30]} 29. Qc2 {[%emt 0:00:30]} Qd5 {[%emt 0:00:30]} 30. h3 {[%emt 0:00:30]} Nf3+ {[%emt 0:00:30]} 31. Kf2 {[%emt 0:00:30]} Ne1 {[%emt 0:00:30]} 32. Qc8+ {[%emt 0:00:30]} Kh7 {[%emt 0:00:30]} 33. Kg1 {[%emt 0:00:30]} Qf3 {[%emt 0:00:30]} 34. Nf4 {[%emt 0:00:30]} 0-1

[Event "Charlotte Fall-IM 2019"]
[Site "Charlotte"]
[Date "2019.12.01"]
[Round "8.2"]
[White "Gauri, Shankar"]
[Black "Furfine, Jacob"]
[Result "1/2-1/2"]
[ECO "A31"]
[WhiteElo "2340"]
[BlackElo "2302"]
[Annotator "NA"]
[PlyCount "29"]
[EventDate "2019.11.28"]
[EventType "tourn"]
[EventCountry "USA"]
[SourceTitle "playchess.com"]
[Source "ChessBase"]
[SourceQuality "1"]
[TimeControl "5400+30"]

1. d4 {[%emt 1:30:30]} Nf6 {[%emt 1:30:30]} 2. c4 {[%emt 0:00:30]} c5 {[%emt 0:00:30]} 3. Nf3 {[%emt 0:00:30]} g6 {[%emt 0:00:30]} 4. Nc3 {[%emt 0:00:30]} cxd4 {[%emt 0:00:30]} 5. Nxd4 {[%emt 0:00:30]} b6 {[%emt 0:00:30]} 6. e4 {[%emt 0:00:30]} Bb7 {[%emt 0:00:30]} 7. e5 {[%emt 0:00:30]} Ne4 {[%emt 0:00:30]} 8. Nd5 {[%emt 0:00:30]} e6 {[%emt 0:00:30]} 9. Nc3 {[%emt 0:00:30]} Nxc3 {[%emt 0:00:30]} 10. bxc3 {[%emt 0:00:30]} Nc6 {[%emt 0:00:30]} 11. Bf4 {[%emt 0:00:30]} Nxd4 {[%emt 0:00:30]} 12. cxd4 {[%emt 0:00:30]} Bb4+ {[%emt 0:00:30]} 13. Bd2 {[%emt 0:00:30]} Bxd2+ {[%emt 0:00:30]} 14. Qxd2 {[%emt 0:00:30]} O-O {[%emt 0:00:30]} 15. h4 {[%emt 0:00:30]} 1/2-1/2

[Event "Charlotte Fall-IM 2019"]
[Site "Charlotte"]
[Date "2019.12.01"]
[Round "8.3"]
[White "Shen, Christopher"]
[Black "Tsay, Vincent"]
[Result "1-0"]
[ECO "D45"]
[WhiteElo "2306"]
[BlackElo "2300"]
[Annotator "NA"]
[PlyCount "165"]
[EventDate "2019.11.28"]
[EventType "tourn"]
[EventCountry "USA"]
[SourceTitle "playchess.com"]
[Source "ChessBase"]
[SourceQuality "1"]
[TimeControl "5400+30"]

1. d4 {[%emt 1:30:30]} d5 2. c4 e6 3. Nc3 c6 4. e3 Nf6 5. Nf3 Nbd7 6. Qc2 {[%emt 0:02:30]} Bd6 {[%emt 1:33:00]} 7. g4 {[%emt 0:00:30]} Nxg4 {[%emt 0:00:30]} 8. Rg1 {[%emt 0:00:30]} Qf6 {[%emt 0:00:30]} 9. Rxg4 {[%emt 0:00:30]} Qxf3 {[%emt 0:00:30]} 10. Rxg7 {[%emt 0:00:30]} Nf6 {[%emt 0:00:30]} 11. Rg5 {[%emt 0:00:30]} Ng4 {[%emt 0:00:30]} 12. h3 {[%emt 0:00:30]} Nh2 {[%emt 0:00:30]} 13. Bg2 {[%emt 0:00:30]} Qf6 {[%emt 0:00:30]} 14. f4 {[%emt 0:00:30]} Qh6 {[%emt 0:00:30]} 15. Qf2 {[%emt 0:00:30]} Bd7 {[%emt 0:00:30]} 16. Bd2 {[%emt 0:00:30]} Be7 $18 {[%emt 0:00:30]} 17. Qg3 {[%emt 0:00:30]} O-O-O {[%emt 0:00:30]} 18. Qxh2 {[%emt 0:00:30]} Bxg5 {[%emt 0:00:30]} 19. fxg5 {[%emt 0:00:30]} Qh4+ {[%emt 0:00:30]} 20. Ke2 {[%emt 0:00:30]} Qxg5 {[%emt 0:00:30]} 21. Rc1 {[%emt 0:00:30]} Rhg8 {[%emt 0:00:30]} 22. Bf3 {[%emt 0:00:30]} Be8 {[%emt 0:00:30]} 23. cxd5 {[%emt 0:00:30]} exd5 {[%emt 0:00:30]} 24. Nb5 {[%emt 0:00:30]} Qg3 {[%emt 0:00:30]} 25. Qxg3 {[%emt 0:00:30]} Rxg3 {[%emt 0:00:30]} 26. Nc3 {[%emt 0:00:30]} Bd7 {[%emt 0:00:30]} 27. Nxd5 {[%emt 0:00:30]} Bxh3 {[%emt 0:00:30]} 28. Nf4 {[%emt 0:00:30]} Bg4 {[%emt 0:00:30]} 29. Bxg4+ {[%emt 0:00:30]} Rxg4 {[%emt 0:00:30]} 30. Rh1 {[%emt 0:00:30]} Rg7 {[%emt 0:00:30]} 31. Bc3 {[%emt 0:00:30]} Re8 {[%emt 0:00:30]} 32. d5 {[%emt 0:00:30]} Rg3 {[%emt 0:00:30]} 33. Bd4 {[%emt 0:00:30]} cxd5 {[%emt 0:00:30]} 34. Rxh7 {[%emt 0:00:30]} Rg4 {[%emt 0:00:30]} 35. Rxf7 {[%emt 0:00:30]} Kb8 {[%emt 0:00:30]} 36. Kd3 {[%emt 0:00:30]} Rg5 {[%emt 0:00:30]} 37. Rd7 {[%emt 0:00:30]} Kc8 {[%emt 0:00:30]} 38. Rxd5 {[%emt 0:00:30]} Rxd5 {[%emt 0:00:30]} 39. Nxd5 {[%emt 0:00:30]} b6 {[%emt 0:00:30]} 40. e4 {[%emt 0:00:30]} Kb7 {[%emt 0:00:30]} 41. e5 {[%emt 0:00:30]} Kc6 {[%emt 0:00:30]} 42. Nf6 {[%emt 0:00:30]} Rh8 {[%emt 0:00:30]} 43. Bc3 {[%emt 0:00:30]} Rh4 {[%emt 0:00:30]} 44. a3 {[%emt 0:00:30]} a5 {[%emt 0:00:30]} 45. Ne4 {[%emt 0:00:30]} Kd5 {[%emt 0:00:30]} 46. Nd6 {[%emt 0:00:30]} Rh3+ {[%emt 0:00:30]} 47. Kd2 {[%emt 0:00:30]} Rg3 {[%emt 0:00:30]} 48. Nf5 {[%emt 0:00:30]} Rh3 {[%emt 0:00:30]} 49. Ne7+ {[%emt 0:00:30]} Ke6 {[%emt 0:00:30]} 50. Nc8 {[%emt 0:00:30]} b5 {[%emt 0:00:30]} 51. Bxa5 {[%emt 0:00:30]} Kxe5 {[%emt 0:00:30]} 52. Na7 {[%emt 0:00:30]} Kd5 {[%emt 0:00:30]} 53. Nxb5 {[%emt 0:00:30]} Kc4 {[%emt 0:00:30]} 54. Nd6+ {[%emt 0:00:30]} Kb3 {[%emt 0:00:30]} 55. Bc3 {[%emt 0:00:30]} Rh7 {[%emt 0:00:30]} 56. Ne4 {[%emt 0:00:30]} Rh3 {[%emt 0:00:30]} 57. Nc5+ {[%emt 0:00:30]} Kc4 {[%emt 0:00:30]} 58. Bb4 {[%emt 0:00:30]} Rh2+ {[%emt 0:00:30]} 59. Kc1 {[%emt 0:00:30]} Rh1+ {[%emt 0:00:30]} 60. Kc2 {[%emt 0:00:30]} Rh2+ {[%emt 0:00:30]} 61. Kb1 {[%emt 0:00:30]} Rh1+ {[%emt 0:00:30]} 62. Ka2 {[%emt 0:00:30]} Rh2 {[%emt 0:00:30]} 63. Ne4 {[%emt 0:00:30]} Rh3 {[%emt 0:00:30]} 64. Nd2+ {[%emt 0:00:30]} Kb5 {[%emt 0:00:30]} 65. Bc3 {[%emt 0:00:30]} Ka4 {[%emt 0:00:30]} 66. b3+ {[%emt 0:00:30]} Kb5 {[%emt 0:00:30]} 67. a4+ {[%emt 0:00:30]} Ka6 {[%emt 0:00:30]} 68. Kb2 {[%emt 0:00:30]} Rg3 {[%emt 0:00:30]} 69. b4 {[%emt 0:00:30]} Rg4 {[%emt 0:00:30]} 70. Kb3 {[%emt 0:00:30]} Rg3 {[%emt 0:00:30]} 71. Kc4 {[%emt 0:00:30]} Rg8 {[%emt 0:00:30]} 72. b5+ {[%emt 0:00:30]} Kb7 {[%emt 0:00:30]} 73. Nb3 {[%emt 0:00:30]} Rg4+ {[%emt 0:00:30]} 74. Bd4 {[%emt 0:00:30]} Rg2 {[%emt 0:00:30]} 75. a5 {[%emt 0:00:30]} Ka8 {[%emt 0:00:30]} 76. b6 {[%emt 0:00:30]} Ra2 {[%emt 0:00:30]} 77. Kb5 {[%emt 0:00:30]} Re2 {[%emt 0:00:30]} 78. a6 {[%emt 0:00:30]} Re4 {[%emt 0:00:30]} 79. Bc5 {[%emt 0:00:30]} Re6 {[%emt 0:00:30]} 80. Nd4 {[%emt 0:00:30]} Rh6 {[%emt 0:00:30]} 81. Nc6 {[%emt 0:00:30]} Rh7 {[%emt 0:00:30]} 82. Na5 {[%emt 0:00:30]} Ra7 {[%emt 0:00:30]} 83. b7+ {[%emt 0:00:30]} 1-0

[Event "Charlotte Fall-IM 2019"]
[Site "Charlotte"]
[Date "2019.12.01"]
[Round "9.5"]
[White "Martin Del Campo C., Roberto"]
[Black "Gauri, Shankar"]
[Result "1/2-1/2"]
[ECO "B93"]
[WhiteElo "2314"]
[BlackElo "2340"]
[Annotator "ChessBase"]
[PlyCount "20"]
[EventDate "2019.11.28"]
[EventType "tourn"]
[EventCountry "USA"]
[SourceTitle "playchess.com"]
[Source "ChessBase"]
[SourceQuality "1"]
[TimeControl "5400+30"]

1. e4 {[%emt 1:30:30]} c5 {[%emt 1:30:30]} 2. Nf3 {[%emt 0:00:30]} d6 {[%emt 0:00:30]} 3. d4 {[%emt 0:00:30]} cxd4 {[%emt 0:00:30]} 4. Nxd4 {[%emt 0:00:30]} Nf6 {[%emt 0:00:30]} 5. Nc3 {[%emt 0:00:30]} a6 {[%emt 0:00:30]} 6. f4 {[%emt 0:00:30]} e5 {[%emt 0:00:30]} 7. Nf3 {[%emt 0:00:30]} Qc7 {[%emt 0:00:30]} 8. Bd3 {[%emt 0:00:30]} Be7 {[%emt 0:00:30]} 9. O-O {[%emt 0:00:30]} O-O {[%emt 0:00:30]} 10. Kh1 {[%emt 0:00:30]} b5 {[%emt 0:00:30]} 1/2-1/2